bitfinex-derivatives/quotes_BTCF0:USTF0_20260106
["timestamp","ask_amount","ask_price","bid_price","bid_amount"]
[1767693842922,0.010696,93519.0,93508.0,0.09850486]
[1767693843124,0.010696,93522.0,93510.0,0.010697]
[1767693843429,0.010696,93524.0,93510.0,0.010697]
[1767693843933,0.010695,93526.0,93512.0,0.010697]
[1767693844834,0.010696,93525.0,93512.0,0.010697]
[1767693846231,0.010696,93525.0,93510.0,0.010697]
[1767693847329,0.010696,93524.0,93510.0,0.010697]
[1767693847533,0.010696,93522.0,93508.0,0.09850486]
[1767693849436,0.010696,93522.0,93508.0,0.07950486]
[1767693849734,0.010696,93520.0,93508.0,0.07950486]
[1767693852226,0.09096,93527.0,93508.0,0.07950486]
[1767693854636,0.010696,93520.0,93508.0,0.07950486]
[1767693856335,0.010696,93518.0,93508.0,0.07950486]
[1767693856834,0.010696,93520.0,93508.0,0.07950486]
[1767693857231,0.010696,93520.0,93508.0,0.06950486]
[1767693857440,0.010696,93520.0,93507.0,0.010698]
[1767693859638,0.010696,93522.0,93507.0,0.010698]
[1767693859943,0.010695,93528.0,93513.0,0.010697]
[1767693860140,0.010695,93530.0,93511.0,0.09850486]
[1767693860443,0.010695,93530.0,93513.0,0.09850486]
[1767693861234,0.09083403,93535.0,93519.0,0.010696]
[1767693861945,0.010694,93536.0,93516.0,0.09850486]
[1767693862135,0.010695,93534.0,93519.0,0.010696]
[1767693862644,0.010695,93534.0,93519.0,0.10920086]
[1767693864846,0.010695,93534.0,93519.0,0.08720086]
[1767693865045,0.00213816,93539.0,93519.0,0.08720086]
[1767693865241,0.10776416,93539.0,93519.0,0.08720086]
[1767693865441,0.010695,93530.0,93516.0,0.010697]
[1767693865745,0.105626,93538.0,93516.0,0.010697]
[1767693866538,0.010695,93531.0,93516.0,0.010697]
[1767693867244,0.105626,93538.0,93516.0,0.010697]
[1767693867846,0.010695,93530.0,93516.0,0.010697]
[1767693870643,0.010695,93530.0,93515.0,0.09096]
[1767693870843,0.010695,93530.0,93515.0,0.101657]
[1767693871147,0.010696,93524.0,93515.0,0.09096]
[1767693871445,0.010696,93523.0,93515.0,0.09096]
[1767693872749,0.010696,93523.0,93515.0,0.06796]
[1767693875452,0.09891041,93530.0,93515.0,0.06796]
[1767693875640,0.010696,93526.0,93515.0,0.06796]
[1767693875949,0.010696,93524.0,93515.0,0.06796]
[1767693876753,0.010695,93527.0,93515.0,0.06796]
[1767693877045,0.010696,93525.0,93515.0,0.06796]
[1767693878651,0.010695,93528.0,93515.0,0.06796]
[1767693878852,0.09891041,93530.0,93515.0,0.06796]
[1767693879551,0.010695,93527.0,93515.0,0.06796]
[1767693879753,0.11219635,93533.0,93515.0,0.078657]
[1767693879951,0.010695,93528.0,93515.0,0.078657]
[1767693880356,0.010695,93528.0,93515.0,0.04096]
[1767693880851,0.010695,93526.0,93515.0,0.04096]
[1767693881046,0.010696,93524.0,93515.0,0.04096]
[1767693882855,0.010695,93526.0,93515.0,0.04096]
[1767693883755,0.010696,93524.0,93515.0,0.04096]
[1767693885448,0.09677102,93533.0,93515.0,0.04096]
[1767693885654,0.12289035,93538.0,93520.0,0.09891041]
[1767693885952,0.010695,93529.0,93516.0,0.010697]
[1767693888662,0.010695,93529.0,93515.0,0.034657]
[1767693889251,0.010695,93529.0,93516.0,0.010697]
[1767693890161,0.010695,93527.0,93515.0,0.11168638]
[1767693891549,0.010695,93529.0,93515.0,0.11168638]
[1767693893062,0.010695,93531.0,93515.0,0.11168638]
[1767693893263,0.010695,93531.0,93515.0,0.21037903]
[1767693893865,0.010695,93529.0,93516.0,0.010696]
[1767693894055,0.010695,93529.0,93515.0,0.21037903]
[1767693894961,0.010695,93529.0,93515.0,0.22107603]
[1767693895462,0.010695,93529.0,93515.0,0.14404665]
[1767693895663,0.010695,93532.0,93515.0,0.13334965]
[1767693895863,0.010695,93531.0,93517.0,0.010696]
[1767693896058,0.010695,93533.0,93515.0,0.13334965]
[1767693896263,0.00213816,93539.0,93521.0,0.010696]
[1767693896467,0.010695,93535.0,93520.0,0.18952839]
[1767693896656,0.010694,93538.0,93521.0,0.010696]
[1767693897663,0.00213816,93539.0,93525.0,0.010696]
[1767693897860,0.00213816,93539.0,93527.0,0.010695]
[1767693900856,0.00213816,93539.0,93524.0,0.010696]
[1767693901567,0.00213816,93539.0,93521.0,0.101656]
[1767693901766,0.00213816,93539.0,93523.0,0.010696]
[1767693902558,0.010694,93538.0,93523.0,0.010696]
[1767693903970,0.00213816,93539.0,93526.0,0.010695]
[1767693904169,0.01283216,93539.0,93521.0,0.17670323]
[1767693904968,0.010694,93537.0,93521.0,0.18739923]
[1767693905372,0.11454616,93539.0,93521.0,0.084656]
[1767693905570,0.11454616,93539.0,93522.0,0.07702938]
[1767693906771,0.010695,93534.0,93522.0,0.07702938]
[1767693907073,0.11454616,93539.0,93522.0,0.07702938]
[1767693907273,0.010695,93533.0,93522.0,0.07702938]
[1767693907463,0.11454616,93539.0,93522.0,0.07702938]
[1767693907659,0.09873506,93533.0,93521.0,0.16168538]
[1767693907872,0.010695,93529.0,93521.0,0.084656]
[1767693908069,0.112408,93532.0,93521.0,0.16168538]
[1767693908573,0.112408,93532.0,93521.0,0.084656]
[1767693908873,0.09873506,93532.0,93521.0,0.084656]
[1767693909170,0.010695,93529.0,93521.0,0.084656]
[1767693911877,0.010695,93529.0,93521.0,0.053656]
[1767693913372,0.010695,93532.0,93521.0,0.053656]
[1767693915180,0.010695,93532.0,93521.0,0.13068538]
[1767693915374,0.010695,93532.0,93521.0,0.053656]
[1767693915570,0.010695,93532.0,93522.0,0.07702938]
[1767693915772,0.010695,93530.0,93522.0,0.07702938]
[1767693917579,0.010695,93529.0,93522.0,0.07702938]
[1767693918079,0.09873506,93538.0,93523.0,0.07702938]
[1767693918882,0.010695,93532.0,93523.0,0.07702938]
[1767693919581,0.010695,93532.0,93523.0,0.04602938]
[1767693919982,0.010695,93532.0,93521.0,0.053656]
[1767693921672,0.09873506,93538.0,93521.0,0.053656]
[1767693923284,0.010695,93531.0,93521.0,0.053656]
[1767693924275,0.010695,93530.0,93521.0,0.053656]
[1767693924785,0.010695,93529.0,93521.0,0.053656]
[1767693927380,0.010695,93529.0,93521.0,0.030656]
[1767693927986,0.10942906,93538.0,93521.0,0.030656]
[1767693928177,0.010695,93529.0,93521.0,0.030656]
[1767693929581,0.010695,93529.0,93523.0,0.07704445]
[1767693929787,0.010695,93529.0,93522.0,0.07704445]
[1767693932189,0.10942906,93538.0,93521.0,0.030656]
[1767693932190,0.010695,93531.0,93521.0,0.030656]
[1767693933898,0.10942906,93538.0,93521.0,0.030656]
[1767693934198,0.010695,93529.0,93521.0,0.030656]
[1767693934700,0.010695,93531.0,93521.0,0.030656]
[1767693935199,0.010695,93531.0,93521.0,0.004656]
[1767693936101,0.09873506,93538.0,93521.0,0.004656]
[1767693936294,0.010695,93531.0,93521.0,0.004656]
[1767693936694,0.010695,93530.0,93521.0,0.004656]
[1767693937702,0.010695,93532.0,93521.0,0.004656]
[1767693938404,0.010695,93534.0,93521.0,0.004656]
[1767693938904,0.010695,93533.0,93521.0,0.004656]
[1767693942211,0.11248536,93538.0,93523.0,0.07704445]
[1767693942708,0.11248536,93538.0,93523.0,0.05904445]
[1767693943409,0.010695,93528.0,93521.0,0.004656]
[1767693944409,0.010695,93526.0,93521.0,0.004656]
[1767693944612,0.09092032,93534.0,93521.0,0.004656]
[1767693945311,0.10467062,93534.0,93521.0,0.004656]
[1767693945499,0.10467062,93533.0,93521.0,0.004656]
[1767693945700,0.09092032,93533.0,93521.0,0.004656]
[1767693947208,0.010695,93528.0,93521.0,0.004656]
[1767693947416,0.010695,93526.0,93521.0,0.004656]
[1767693947608,0.09092032,93533.0,93521.0,0.004656]
[1767693947810,0.10467062,93533.0,93521.0,0.004656]
[1767693948107,0.010696,93524.0,93509.0,0.10469411]
[1767693948304,0.09092032,93527.0,93510.0,0.09092]
[1767693948499,0.010696,93523.0,93510.0,0.09092]
[1767693950414,0.010696,93523.0,93510.0,0.06892]
[1767693951511,0.010696,93526.0,93511.0,0.010697]
[1767693952714,0.010696,93526.0,93512.0,0.010697]
[1767693953311,0.09092032,93527.0,93510.0,0.06892]
[1767693954017,0.09092032,93527.0,93513.0,0.010697]
[1767693954209,0.010695,93526.0,93513.0,0.010697]
[1767693955417,0.09092032,93527.0,93513.0,0.010697]
[1767693956123,0.09092032,93527.0,93515.0,0.010697]
[1767693957614,0.09081641,93533.0,93521.0,0.010696]
[1767693957812,0.09081641,93533.0,93515.0,0.09092]
[1767693958007,0.09081641,93533.0,93521.0,0.010696]
[1767693958208,0.09081641,93533.0,93522.0,0.010696]
[1767693958413,0.09081641,93533.0,93515.0,0.077616]
[1767693958821,0.09081641,93533.0,93524.0,0.010696]
[1767693959420,0.09081641,93533.0,93525.0,0.010695]
[1767693960820,0.00213816,93539.0,93525.0,0.010695]
[1767693961210,0.11539847,93539.0,93525.0,0.010695]
[1767693961518,0.11326031,93538.0,93525.0,0.010695]
[1767693961718,0.11326031,93537.0,93525.0,0.010695]
[1767693962720,0.11326031,93537.0,93515.0,0.077616]
[1767693962721,0.11326031,93537.0,93526.0,0.010695]
[1767693963015,0.1996,93554.0,93527.0,0.010695]
[1767693963216,0.09092,93555.0,93544.0,0.010693]
[1767693963416,0.010691,93565.0,93550.0,0.010693]
[1767693963620,0.00213747,93569.0,93547.0,0.01179849]
[1767693963812,0.00213747,93569.0,93563.0,0.010691]
[1767693964014,0.09092,93578.0,93563.0,0.010691]
[1767693964216,0.08092,93578.0,93551.0,0.010693]
[1767693964416,0.01069,93571.0,93552.0,0.010692]
[1767693964717,0.08092,93578.0,93552.0,0.010692]
[1767693964921,0.08092,93578.0,93551.0,0.09092]
[1767693965117,0.0137305,93577.0,93560.0,0.010692]
[1767693965522,0.0137305,93576.0,93560.0,0.010692]
[1767693965913,0.0137305,93576.0,93562.0,0.010691]
[1767693966114,0.0137305,93576.0,93556.0,0.01280423]
[1767693966514,0.0137305,93576.0,93560.0,0.09879372]
[1767693967220,0.0137305,93584.0,93566.0,0.09879372]
[1767693967425,0.09092,93586.0,93570.0,0.09879372]
[1767693967922,0.1046505,93586.0,93570.0,0.09879372]
[1767693968228,0.0137305,93585.0,93570.0,0.09879372]
[1767693968621,0.010689,93584.0,93566.0,0.12016471]
[1767693968820,0.010689,93584.0,93570.0,0.09879372]
[1767693970620,0.010689,93584.0,93570.0,0.11064629]
[1767693970927,0.010689,93584.0,93570.0,0.19612852]
[1767693972424,0.010689,93582.0,93570.0,0.19612852]
[1767693972827,0.0137305,93588.0,93570.0,0.09879372]
[1767693973030,0.010689,93579.0,93565.0,0.0973348]
[1767693973923,0.010689,93579.0,93565.0,0.0903348]
[1767693976428,0.09879372,93580.0,93561.0,0.09092]
[1767693976929,0.01069,93576.0,93561.0,0.09092]
[1767693977335,0.010689,93579.0,93561.0,0.09092]
[1767693977635,0.01069,93577.0,93561.0,0.10204551]
[1767693978630,0.01069,93577.0,93562.0,0.01080114]
[1767693979935,0.01069,93575.0,93562.0,0.01080114]
[1767693981433,0.01069,93575.0,93561.0,0.08572114]
[1767693981662,0.01069,93575.0,93562.0,0.09092]
[1767693981939,0.01069,93578.0,93562.0,0.101611]
[1767693982138,0.01069,93578.0,93562.0,0.1989458]
[1767693984441,0.01069,93577.0,93562.0,0.1989458]
[1767693984944,0.0137305,93584.0,93564.0,0.010691]
[1767693985242,0.010689,93580.0,93565.0,0.010691]
[1767693985542,0.010689,93585.0,93571.0,0.0973348]
[1767693985738,0.010689,93583.0,93571.0,0.0973348]
[1767693986739,0.0137305,93589.0,93566.0,0.0973348]
[1767693986948,0.010689,93581.0,93570.0,0.09879372]
[1767693987845,0.010689,93580.0,93570.0,0.09879372]
[1767693989041,0.01069,93578.0,93570.0,0.09879372]
[1767693989245,0.01069,93578.0,93566.0,0.0883348]
[1767693991146,0.010689,93581.0,93566.0,0.0883348]
[1767693991347,0.01069,93578.0,93566.0,0.0883348]
[1767693991549,0.010689,93581.0,93566.0,0.0883348]
[1767693992143,0.010689,93582.0,93567.0,0.010691]
[1767693992646,0.010689,93582.0,93568.0,0.09625915]
[1767693993938,0.010689,93582.0,93570.0,0.09879372]
[1767693994141,0.010689,93580.0,93570.0,0.09879372]
[1767693995548,0.010689,93580.0,93568.0,0.09625915]
[1767693995848,0.010689,93583.0,93568.0,0.09625915]
[1767693996443,0.01069,93578.0,93568.0,0.09088]
[1767693996948,0.01069,93578.0,93568.0,0.07288]
[1767693998251,0.01548638,93583.0,93568.0,0.07288]
[1767693998252,0.01069,93576.0,93568.0,0.07288]
[1767693998651,0.010689,93579.0,93568.0,0.07288]
[1767694000342,0.01069,93577.0,93568.0,0.07288]
[1767694000643,0.01069,93575.0,93568.0,0.07288]
[1767694001546,0.01548638,93574.0,93551.0,0.09625915]
[1767694001753,0.09879372,93570.0,93556.0,0.010692]
[1767694001953,0.01069,93571.0,93556.0,0.010692]
[1767694004755,0.01069,93571.0,93553.0,0.08395115]
[1767694005650,0.01069,93571.0,93553.0,0.1800444]
[1767694005847,0.010692,93560.0,93551.0,0.09609325]
[1767694006052,0.010692,93558.0,93549.0,0.09088]
[1767694006453,0.010692,93561.0,93549.0,0.09088]
[1767694006851,0.010692,93561.0,93535.0,1.5]
[1767694006852,0.01548638,93554.0,93534.0,0.2307897]
[1767694007059,0.010693,93551.0,93540.0,0.09088]
[1767694007258,0.010693,93552.0,93540.0,0.09088]
[1767694008252,0.010693,93550.0,93540.0,0.09088]
[1767694011264,0.010693,93550.0,93537.0,0.09092]
[1767694012063,0.09879372,93550.0,93537.0,0.09092]
[1767694012360,0.010693,93547.0,93537.0,0.06792]
[1767694012764,0.09879372,93550.0,93537.0,0.06792]
[1767694013154,0.09879372,93550.0,93531.0,0.00168042]
[1767694013359,0.010692,93556.0,93530.0,0.09092]
[1767694013360,0.09879372,93541.0,93530.0,0.09092]
[1767694014063,0.010693,93545.0,93530.0,0.09092]
[1767694014267,0.01548638,93547.0,93527.0,0.09092]
[1767694014268,0.09879372,93540.0,93527.0,0.09092]
[1767694014770,0.010694,93537.0,93527.0,0.09092]
[1767694014958,0.1142801,93540.0,93521.0,0.01265824]
[1767694015158,0.1142801,93540.0,93522.0,0.09092]
[1767694015664,0.010694,93539.0,93523.0,0.010696]
[1767694017669,0.010694,93539.0,93522.0,0.09092]
[1767694017869,0.010694,93537.0,93522.0,0.09092]
[1767694018059,0.010694,93535.0,93522.0,0.09092]
[1767694018965,0.09879372,93532.0,93516.0,0.00149333]
[1767694019179,0.010695,93529.0,93520.0,0.09092]
[1767694019562,0.10948872,93532.0,93518.0,0.09092]
[1767694019760,0.10948872,93532.0,93516.0,0.00149333]
[1767694019964,0.10948872,93532.0,93517.0,0.09092]
[1767694020165,0.10948872,93532.0,93517.0,0.07292]
[1767694020366,0.010695,93532.0,93517.0,0.07292]
[1767694020566,0.010695,93532.0,93517.0,0.07459429]
[1767694020767,0.010695,93532.0,93518.0,0.00167429]
[1767694021168,0.010695,93535.0,93518.0,0.00167429]
[1767694021367,0.010695,93535.0,93518.0,0.09259429]
[1767694022460,0.010695,93533.0,93518.0,0.09259429]
[1767694023375,0.09879372,93530.0,93518.0,0.09092]
[1767694023576,0.010695,93531.0,93518.0,0.09092]
[1767694023772,0.010695,93534.0,93518.0,0.09092]
[1767694023973,0.010695,93535.0,93518.0,0.09092]
[1767694024174,0.010695,93533.0,93518.0,0.101616]
[1767694024374,0.010695,93533.0,93520.0,0.09879372]
[1767694024875,0.010694,93536.0,93520.0,0.09879372]
[1767694025971,0.010694,93536.0,93518.0,0.10433748]
[1767694026879,0.010695,93534.0,93518.0,0.09364148]
[1767694027777,0.09095348,93537.0,93518.0,0.09092]
[1767694027778,0.010695,93528.0,93518.0,0.09092]
[1767694027982,0.010695,93528.0,93518.0,0.07292]
[1767694035590,0.010695,93531.0,93518.0,0.03892]
[1767694035787,0.010695,93531.0,93518.0,0.04011736]
[1767694036483,0.010695,93529.0,93518.0,0.04011736]
[1767694036788,0.09095348,93537.0,93518.0,0.04011736]
[1767694036988,0.01530669,93536.0,93518.0,0.03892]
[1767694037888,0.010695,93527.0,93518.0,0.03892]
[1767694038481,0.010695,93530.0,93518.0,0.03892]
[1767694040190,0.010695,93528.0,93518.0,0.03892]
[1767694040792,0.010695,93528.0,93518.0,0.0405363]
[1767694042395,0.010695,93528.0,93519.0,0.00146811]
[1767694043494,0.010695,93528.0,93518.0,0.1020935]
[1767694045894,0.010694,93540.0,93513.0,0.00011717]
[1767694045895,0.010696,93523.0,93513.0,0.00011717]
[1767694046998,0.010696,93526.0,93513.0,0.00011717]
[1767694049090,0.010695,93530.0,93514.0,0.010697]
[1767694050996,0.010695,93530.0,93512.0,0.08973417]
[1767694051197,0.010695,93528.0,93512.0,0.08973417]
[1767694052000,9.517e-05,93527.0,93512.0,0.08973417]
[1767694052190,9.517e-05,93527.0,93512.0,0.10043117]
[1767694053701,9.517e-05,93527.0,93512.0,0.08973417]
[1767694054392,0.010696,93525.0,93512.0,0.08973417]
[1767694054796,9.517e-05,93527.0,93513.0,0.09798387]
[1767694056004,9.517e-05,93527.0,93514.0,0.10868087]
[1767694056402,9.517e-05,93527.0,93516.0,0.010697]
[1767694056724,0.101614,93539.0,93522.0,0.10867987]
[1767694057093,0.010694,93537.0,93522.0,0.09798387]
[1767694057403,0.09092,93539.0,93522.0,0.09798387]
[1767694057907,0.010695,93535.0,93522.0,0.09798387]
[1767694058708,0.010695,93535.0,93522.0,0.08998387]
[1767694059305,0.010695,93535.0,93518.0,0.010696]
[1767694060909,0.010695,93531.0,93519.0,0.09798387]
[1767694062901,0.010695,93534.0,93519.0,0.09798387]
[1767694064404,0.010695,93534.0,93519.0,0.10867987]
[1767694064915,0.010694,93540.0,93523.0,0.10867987]
[1767694065107,0.010694,93540.0,93525.0,0.010696]
[1767694065309,0.010694,93538.0,93523.0,0.09798387]
[1767694065609,0.010694,93536.0,93523.0,0.09798387]
[1767694065907,0.010695,93533.0,93523.0,0.09798387]
[1767694066203,0.01428821,93543.0,93523.0,0.09798387]
[1767694066204,0.01428821,93542.0,93523.0,0.09798387]
[1767694066407,0.10520821,93542.0,93523.0,0.09798387]
[1767694066708,0.10520821,93542.0,93523.0,0.09398387]
[1767694067509,0.01428821,93536.0,93517.0,0.09092]
[1767694069000,0.010696,93525.0,93517.0,0.09092]
[1767694070008,0.01428821,93533.0,93514.0,0.09798387]
[1767694070210,0.01428821,93527.0,93511.0,0.09092]
[1767694070506,0.010696,93523.0,93511.0,0.09092]
[1767694070997,0.010696,93526.0,93511.0,0.09092]
[1767694071199,0.010696,93526.0,93511.0,0.18890387]
[1767694072301,0.010695,93529.0,93512.0,0.10868087]
[1767694072608,0.1012266,93535.0,93515.0,0.09798387]
[1767694072609,0.0905316,93535.0,93515.0,0.09798387]
[1767694072909,0.010695,93526.0,93515.0,0.09798387]
[1767694074208,0.010695,93526.0,93515.0,0.08498387]
[1767694076412,0.010695,93529.0,93515.0,0.08498387]
[1767694076598,0.010695,93527.0,93515.0,0.08498387]
[1767694080316,0.10567886,93558.0,93515.0,0.08498387]
[1767694080514,0.10567886,93558.0,93511.0,0.09092]
[1767694080515,0.09096,93551.0,93530.0,0.09223005]
[1767694080720,0.010693,93550.0,93530.0,0.09223005]
[1767694081016,0.010692,93559.0,93539.0,0.11034258]
[1767694081220,0.09096,93558.0,93541.0,0.010694]
[1767694081420,0.010692,93557.0,93539.0,0.09964858]
[1767694081917,0.010692,93555.0,93539.0,0.09964858]
[1767694082115,0.010693,93550.0,93530.0,0.010695]
[1767694083113,0.10656485,93556.0,93530.0,0.010695]
[1767694083314,0.010693,93550.0,93530.0,0.010695]
[1767694083623,0.010693,93550.0,93532.0,0.010695]
[1767694084116,0.010693,93550.0,93533.0,0.09964858]
[1767694085419,0.10656485,93556.0,93533.0,0.09964858]
[1767694085623,0.010692,93555.0,93537.0,0.09964858]
[1767694086732,0.09092,93559.0,93537.0,0.09964858]
[1767694087618,0.010692,93552.0,93537.0,0.09964858]
[1767694089924,0.010692,93552.0,93537.0,0.07964858]
[1767694090620,0.010692,93552.0,93540.0,0.09884371]
[1767694091521,0.1057296,93559.0,93537.0,0.07964858]
[1767694091715,0.10656485,93558.0,93537.0,0.07964858]
[1767694091921,0.010693,93550.0,93537.0,0.07964858]
[1767694093723,0.010693,93548.0,93532.0,0.09964858]
[1767694096216,0.10656485,93554.0,93533.0,0.010695]
[1767694096419,0.010693,93551.0,93535.0,0.010694]
[1767694096724,0.09175525,93554.0,93532.0,0.09964858]
[1767694096725,0.010692,93554.0,93540.0,0.09884371]
[1767694097528,0.010692,93554.0,93540.0,0.08184371]
[1767694098528,0.19748485,93559.0,93540.0,0.08184371]
[1767694099530,0.10656485,93558.0,93540.0,0.08184371]
[1767694099720,0.010693,93550.0,93540.0,0.08184371]
[1767694100230,0.010693,93550.0,93534.0,0.010694]
[1767694100830,0.10656485,93558.0,93532.0,0.09964858]
[1767694101028,0.10656485,93558.0,93536.0,0.010694]
[1767694101228,0.10656485,93558.0,93540.0,0.09884371]
[1767694101735,0.10656485,93558.0,93536.0,0.010694]
[1767694102629,0.010692,93553.0,93537.0,0.010694]
[1767694102820,0.010693,93551.0,93537.0,0.010694]
[1767694103629,0.010692,93554.0,93537.0,0.010694]
[1767694103830,0.010692,93554.0,93539.0,0.010694]
[1767694104131,0.010692,93557.0,93542.0,0.010694]
[1767694105325,0.09175525,93558.0,93540.0,0.08484371]
[1767694105523,0.010692,93555.0,93540.0,0.09553771]
[1767694106922,0.010692,93553.0,93537.0,0.010694]
[1767694107122,0.010692,93553.0,93540.0,0.09884371]
[1767694108337,0.010692,93556.0,93540.0,0.09884371]
[1767694109139,0.010692,93556.0,93541.0,0.010694]
[1767694112235,0.010692,93555.0,93540.0,0.09884371]
[1767694113128,0.010692,93555.0,93540.0,0.08384371]
[1767694113935,0.010692,93555.0,93539.0,0.010694]
[1767694114234,0.010692,93554.0,93540.0,0.09884371]
[1767694115534,0.10553994,93558.0,93540.0,0.09884371]
[1767694117034,0.010692,93552.0,93540.0,0.09884371]
[1767694119133,0.010692,93552.0,93537.0,0.010694]
[1767694119341,0.010692,93552.0,93540.0,0.09884371]
[1767694119540,0.010692,93552.0,93537.0,0.010694]
[1767694119739,0.010692,93552.0,93540.0,0.09884371]
[1767694120643,0.010692,93552.0,93540.0,0.08184371]
[1767694121441,0.010693,93551.0,93540.0,0.08184371]
[1767694121642,0.10989189,93557.0,93536.0,0.09964858]
[1767694122534,0.0961072,93555.0,93535.0,0.09092]
[1767694123142,0.010693,93551.0,93535.0,0.09092]
[1767694125939,0.010693,93551.0,93540.0,0.09884371]
[1767694126847,0.010692,93554.0,93540.0,0.09884371]
[1767694127946,0.010692,93552.0,93540.0,0.09884371]
[1767694128747,0.010692,93552.0,93540.0,0.09484371]
[1767694130451,0.09092,93559.0,93540.0,0.09484371]
[1767694130637,0.010692,93554.0,93540.0,0.09484371]
[1767694131864,0.09092,93559.0,93540.0,0.10553771]
[1767694132769,0.09092,93559.0,93540.0,0.20234625]
[1767694133265,0.010692,93556.0,93540.0,0.20234625]
[1767694136464,0.010692,93556.0,93540.0,0.10750254]
[1767694136770,0.010692,93556.0,93540.0,0.20634625]
[1767694137272,0.010692,93555.0,93540.0,0.20634625]
[1767694139075,0.010692,93557.0,93541.0,0.010694]
[1767694139769,0.010692,93557.0,93541.0,0.10994271]
[1767694140069,0.010692,93560.0,93547.0,0.09884371]
[1767694140273,0.010692,93560.0,93535.0,0.09092]
[1767694140274,0.010692,93560.0,93546.0,0.09924871]
[1767694140976,0.01069,93570.0,93555.0,0.09924871]
[1767694141174,0.01069,93570.0,93560.0,0.09884371]
[1767694141578,0.010691,93568.0,93560.0,0.09884371]
[1767694141776,0.010691,93565.0,93555.0,0.09924871]
[1767694142177,0.09092,93574.0,93556.0,0.09795229]
[1767694142370,0.09869681,93583.0,93546.0,0.17670457]
[1767694142371,0.01069,93572.0,93561.0,0.09795229]
[1767694142673,0.09092,93580.0,93561.0,0.10864329]
[1767694142879,0.11297086,93589.0,93570.0,0.09884371]
[1767694142880,0.01069,93578.0,93570.0,0.09884371]
[1767694143175,0.01069,93578.0,93561.0,0.10864329]
[1767694144478,0.01069,93578.0,93556.0,0.09092]
[1767694144479,0.01069,93578.0,93564.0,0.09795229]
[1767694146776,0.10519405,93587.0,93564.0,0.09795229]
[1767694146980,0.11297086,93584.0,93564.0,0.09795229]
[1767694147278,0.01069,93573.0,93564.0,0.09795229]
[1767694147680,0.010691,93568.0,93558.0,0.09795229]
[1767694147882,0.010691,93568.0,93560.0,0.09884371]
[1767694148877,0.01427405,93576.0,93558.0,0.09092]
[1767694149082,0.010691,93566.0,93558.0,0.09092]
[1767694151381,0.09869681,93575.0,93558.0,0.09092]
[1767694151974,0.09869681,93575.0,93558.0,0.07492]
[1767694152281,0.010691,93568.0,93558.0,0.07492]
[1767694152975,0.09869681,93575.0,93558.0,0.07492]
[1767694153375,0.010691,93569.0,93558.0,0.07492]
[1767694154087,0.010691,93568.0,93558.0,0.07492]
[1767694154384,0.09869681,93575.0,93558.0,0.07492]
[1767694154581,0.010691,93566.0,93558.0,0.07492]
[1767694155775,0.11297086,93575.0,93558.0,0.07492]
[1767694155984,0.11297086,93574.0,93558.0,0.07492]
[1767694156389,0.010691,93563.0,93558.0,0.07492]
[1767694158382,0.010691,93566.0,93558.0,0.07492]
[1767694158889,0.010691,93569.0,93558.0,0.07492]
[1767694159089,0.010691,93569.0,93559.0,0.09795229]
[1767694159772,0.09869681,93580.0,93559.0,0.08095229]
[1767694159978,0.010689,93580.0,93562.0,0.010691]
[1767694160890,0.010689,93580.0,93564.0,0.010691]
[1767694161785,0.010689,93580.0,93564.0,0.10864329]
[1767694164689,0.010688,93594.0,93559.0,0.07674846]
[1767694164690,0.09869681,93591.0,93567.0,0.09795229]
[1767694164893,0.010689,93586.0,93567.0,0.09795229]
[1767694166192,0.110688,93593.0,93567.0,0.09795229]
[1767694167305,0.010689,93585.0,93569.0,0.08095229]
[1767694167894,0.010689,93583.0,93569.0,0.08095229]
[1767694172099,0.010689,93581.0,93569.0,0.08095229]
[1767694172591,0.010689,93579.0,93569.0,0.08095229]
[1767694172792,0.010689,93582.0,93569.0,0.08095229]
[1767694173492,0.010689,93581.0,93569.0,0.08095229]
[1767694175195,0.010689,93581.0,93569.0,0.05795229]
[1767694176497,0.010689,93580.0,93569.0,0.05795229]
[1767694178305,0.010689,93584.0,93569.0,0.05795229]
[1767694180517,0.010689,93580.0,93569.0,0.05795229]
[1767694180899,0.010689,93583.0,93569.0,0.05795229]
[1767694181604,0.01300416,93590.0,93569.0,0.05795229]
[1767694181810,0.1996,93640.0,93587.0,0.01911953]
[1767694181997,0.010687,93601.0,93587.0,0.00843153]
[1767694182304,0.010687,93602.0,93587.0,0.00843153]
[1767694182606,0.010687,93600.0,93587.0,0.00843153]
[1767694182907,0.010687,93600.0,93586.0,0.09632598]
[1767694183495,0.010687,93600.0,93586.0,0.09232598]
[1767694183701,0.010687,93601.0,93586.0,0.10522068]
[1767694187203,0.010687,93599.0,93586.0,0.10522068]
[1767694188102,0.010687,93599.0,93587.0,0.0128947]
[1767694188707,0.09330217,93606.0,93587.0,0.0128947]
[1767694188909,0.010687,93600.0,93587.0,0.0128947]
[1767694189605,0.010687,93601.0,93588.0,0.10922068]
[1767694189811,0.010687,93601.0,93589.0,0.0128947]
[1767694190513,0.010687,93600.0,93589.0,0.0128947]
[1767694191113,0.010687,93600.0,93588.0,0.09222068]
[1767694191415,0.02369016,93607.0,93588.0,0.09222068]
[1767694191611,0.11699233,93607.0,93588.0,0.09222068]
[1767694191798,0.01300416,93606.0,93584.0,0.09088]
[1767694192200,0.010687,93597.0,93584.0,0.09088]
[1767694192403,0.010687,93598.0,93584.0,0.09088]
[1767694193111,0.010687,93598.0,93585.0,0.00341339]
[1767694194114,0.010687,93598.0,93584.0,0.09088]
[1767694194313,0.010687,93597.0,93584.0,0.09412282]
[1767694194507,0.010687,93599.0,93585.0,0.00324282]
[1767694195716,0.010687,93597.0,93585.0,0.00324282]
[1767694197517,0.09330217,93604.0,93585.0,0.00324282]
[1767694198116,0.09330217,93604.0,93586.0,0.0023323]
[1767694198314,0.01408611,93607.0,93587.0,0.0023323]
[1767694198815,0.010686,93605.0,93586.0,0.07945969]
[1767694199017,0.010687,93599.0,93586.0,0.07945969]
[1767694200716,0.01408611,93606.0,93586.0,0.07945969]
[1767694200916,0.10907993,93605.0,93586.0,0.07945969]
[1767694201410,0.010687,93596.0,93584.0,0.09088]
[1767694201720,0.10907993,93605.0,93584.0,0.09088]